fUST/lending_fUST_20260204
["ID","MTS","AMOUNT","RATE_DAILY","PERIOD"]
[404463625,1770159039286,-169.603601,0.00047714,2]
[404463627,1770159039296,-207.50287306,0.00049122,21]
[404463630,1770159039306,-201.0,0.0004945,120]
[404463631,1770159039315,-150.0,0.00049811,2]
[404463633,1770159039325,-1082.163056,0.0004998,22]
[404463636,1770159039337,-169.603601,0.00049986,2]
[404463638,1770159039347,-155.0,0.0005,120]
[404463640,1770159039356,-1000.0,0.0005,22]
[404463642,1770159039365,-151.0,0.00050136,30]
[404463644,1770159039374,-174.762446,0.0005073,60]
[404463646,1770159039384,-151.0,0.00050821,32]
[404463648,1770159039393,-174.762445,0.00050883,60]
[404463650,1770159039403,-151.0,0.00051506,34]
[404463652,1770159039412,-174.762446,0.00051534,60]
[404463654,1770159039422,-174.762446,0.00051534,60]
[404463656,1770159039431,-155.0,0.000517,120]
[404463658,1770159039441,-150741.02921114,0.00052,90]
[404463660,1770159039450,-1000.0,0.00052029,120]
[404463662,1770159039459,-266.0,0.00052029,120]
[404463664,1770159039472,-256.793,0.0005205,95]
[404463666,1770159039481,-151.0,0.00052191,36]
[404463668,1770159039490,-169.603601,0.00052258,2]
[404463670,1770159039500,-150.0,0.00052811,120]
[404463672,1770159039509,-151.0,0.00052876,38]
[404463674,1770159039519,-499999.0,0.00053,90]
[404463676,1770159039530,-15418.63735419,0.00053158,2]
[404463679,1770159039544,-7612.7808869,0.00053158,2]
[404463681,1770159039553,-173.35317258,0.000533,2]
[404463683,1770159039563,-155.0,0.000534,120]
[404463685,1770159039571,-151.0,0.00053561,40]
[404463687,1770159039580,-2500.0,0.00054,3]
[404463689,1770159039590,-12207.82553526,0.00054246,2]
[404463741,1770159040268,-251.2,0.0004,30]
[404463743,1770159040277,-251.2,0.00042,30]
[404463745,1770159040287,-1817.03,0.0004996,10]
[404463747,1770159040297,-9005.57,0.00054246,2]
[404463749,1770159040309,-649.09,0.00054246,2]
[404463755,1770159040352,-21592.43212981,0.00054246,2]
[404464091,1770159045120,-2003.2858229,0.00054246,2]
[404464096,1770159046112,-453.0,0.00054246,2]
[404464097,1770159046277,-302.0,0.00054246,2]
[404464098,1770159046288,-1600.0,0.00054246,2]
[404464099,1770159129140,163.67258308,0.00013673,2]
[404464100,1770159681541,-201.55640781,0.00018229,2]
[404464101,1770159794593,5041.18095813,0.00039932,120]
[404464102,1770159947493,335.0,0.00030137,120]
[404464103,1770160146228,-5000.0,0.00017971,2]
[404464104,1770160146250,-419.96511608,0.00018153,2]
[404464105,1770160146273,-150.0,0.00018337,2]
[404464106,1770160146297,-300.0,0.00018352,2]
[404464107,1770160146321,-1200.0,0.00018352,2]
[404464108,1770160146342,-300.0,0.00018443,2]
[404464109,1770160146363,-431.10858888,0.00018444,2]
[404464110,1770160146386,-500.0,0.00018444,2]
[404464111,1770160146409,-500.0,0.00018444,2]
[404464112,1770160146430,-500.0,0.00018444,2]
[404464113,1770160146460,-500.0,0.00018444,2]
[404464114,1770160146483,-520.78439888,0.00018444,2]
[404464115,1770160146506,-500.0,0.00018444,2]
[404464116,1770160146528,-500.0,0.00018444,2]
[404464117,1770160146549,-444.43005272,0.00018444,2]
[404464118,1770160146570,-170.7856914,0.00018444,2]
[404464119,1770160146592,-500.0,0.00018444,2]
[404464120,1770160146613,-500.0,0.00018444,2]
[404464121,1770160146638,-500.0,0.00018444,2]
[404464122,1770160146660,-500.0,0.00018444,2]
[404464123,1770160146681,-351.37066555,0.00018444,2]
[404464124,1770160146703,-500.0,0.00018444,2]
[404464125,1770160146731,-500.0,0.00018444,2]
[404464126,1770160146760,-500.0,0.00018444,2]
[404464127,1770160146788,-500.0,0.00018444,2]
[404464128,1770160146816,-250.0,0.00018444,2]
[404464129,1770160146842,-306.48859723,0.00018444,2]
[404464130,1770160146867,-500.0,0.00018444,2]
[404464131,1770160146892,-500.0,0.00018444,2]
[404464132,1770160146918,-876.77819826,0.00018445,2]
[404464133,1770160160345,-19639.90510949,0.00018445,2]
[404464134,1770160160373,-1456.4059686,0.00018647,2]
[404464135,1770160160398,-420.0,0.00020114,2]
[404464136,1770160160419,-175.0,0.00020115,2]
[404464137,1770160160441,-177.0,0.00020337,2]
[404464138,1770160160465,-587.0,0.00021937,2]
[404464139,1770160160486,-204.0,0.00022337,2]
[404464140,1770160160509,-216.0,0.00023925,2]
[404464141,1770160160531,-231.0,0.00024337,2]
[404464142,1770160160558,-1041.66666667,0.00025833,2]
[404464143,1770160160581,-258.0,0.00026337,2]
[404464144,1770160160604,-285.0,0.00028337,2]
[404464145,1770160160629,-312.0,0.00030337,2]
[404464146,1770160160652,-267.41467241,0.00032271,2]
[404464147,1770160160675,-339.0,0.00032337,2]
[404464148,1770160160699,-154.076,0.00032745,33]
[404464149,1770160160722,-170.499589,0.0003298,2]
[404464150,1770160160744,-170.499589,0.00034134,2]
[404464151,1770160160768,-366.0,0.00034337,120]
[404464152,1770160160792,-20516.68330775,0.00035053,2]
[404464153,1770160160813,-155.0,0.00036,30]
[404464154,1770160160835,-155.0,0.00037485,30]
[404464155,1770160161005,-2000.0,0.00039932,20]
[404464156,1770160161027,-150.154,0.00041836,2]
[404464157,1770160161045,-150.631,0.00041836,2]
[404464158,1770160161064,-246.056,0.00041836,2]
[404464159,1770160161084,-233.066,0.00041836,2]
[404464160,1770160161104,-199.724,0.00041836,2]
[404464161,1770160161123,-268.29,0.00041836,2]
[404464162,1770160161142,-1371.0,0.00041836,2]
[404464163,1770160161161,-718.0,0.00041859,2]
[404464164,1770160161180,-179.0,0.00041859,2]
[404464165,1770160161200,-293.05385806,0.00043698,2]
[404464166,1770160161223,-334.91869493,0.00043698,2]
[404464167,1770160161243,-150.0,0.00044836,2]
[404464168,1770160161263,-150.0,0.00044836,2]
[404464169,1770160161282,-150.0,0.00044836,2]
[404464170,1770160161303,-1371.0,0.00044836,2]
[404464171,1770160161325,-718.0,0.00044859,2]
[404464172,1770160161347,-179.0,0.00044859,2]
[404464173,1770160161368,-8643.7942845,0.00045056,120]
[404464174,1770160161388,-156.0,0.00047231,90]
[404464175,1770160161408,-150.0,0.00047836,2]
[404464176,1770160161428,-150.0,0.00047836,2]
[404464177,1770160161447,-199.923,0.00047859,2]
[404464178,1770160161470,-179.0,0.00047859,2]
[404464179,1770160161490,-151.0,0.00050136,30]
[404464180,1770160161511,-151.0,0.00050821,32]
[404464181,1770160161531,-150.0,0.00050836,120]
[404464182,1770160161552,-179.0,0.00050859,120]
[404464183,1770160161571,-151.0,0.00051506,34]
[404464184,1770160161591,-3464.96,0.00051652,10]
[404464185,1770160161613,-20516.68330775,0.00051662,2]
[404464186,1770160161632,-800.0,0.00051802,30]
[404464187,1770160161652,-402.43,0.00052,120]
[404464188,1770160161672,-154.076,0.00052058,95]
[404464189,1770160161690,-151.0,0.00052191,36]
[404464190,1770160161711,-3295.0463305,0.00052813,2]
[404464191,1770160161730,-151.0,0.00052876,38]
[404464192,1770160161749,-151.0,0.00053561,40]
[404464193,1770160161769,-157.077,0.00053859,120]
[404464194,1770160161788,-500.0,0.00053999,3]
[404464195,1770160161807,-500.0,0.00053999,3]
[404464196,1770160161826,-500.0,0.00053999,3]
[404464197,1770160161845,-500.0,0.00053999,3]
[404464198,1770160161864,-500.0,0.00053999,3]
[404464199,1770160161883,-500.0,0.00053999,3]
[404464200,1770160161902,-500.0,0.00053999,3]
[404464201,1770160161920,-500.0,0.00053999,3]
[404464202,1770160161939,-500.0,0.00053999,3]
[404464203,1770160161957,-500.0,0.00053999,3]
[404464204,1770160161978,-500.0,0.00053999,3]
[404464205,1770160161998,-2887.46,0.00054236,10]
[404464206,1770160162017,-72034.62461434,0.00054246,2]
[404464207,1770160163174,-740.91124423,0.00025767,2]
[404464208,1770160198443,18811.96941297,0.00032273,2]
[404464209,1770160198753,7029.7425506,0.00048402,2]
[404464277,1770160238957,-201.55640781,0.00039932,20]
[404464279,1770160238967,-11782.22686237,0.00048402,2]
[404464281,1770160238976,-791.45354238,0.00053604,120]
[404464283,1770160238985,-4788.07761813,0.00053704,2]
[404464285,1770160238995,-207.50287306,0.00054146,26]
[404464287,1770160239004,-181.81777984,0.00054146,2]
[404464288,1770160239014,-500.0,0.00054235,10]
[404464290,1770160239023,-500.0,0.00054235,10]
[404464292,1770160239033,-500.0,0.00054235,10]
[404464294,1770160239042,-500.0,0.00054235,10]
[404464296,1770160239051,-500.0,0.00054235,10]
[404464298,1770160239060,-500.0,0.00054235,10]
[404464300,1770160239070,-500.0,0.00054235,10]
[404464302,1770160239079,-500.0,0.00054235,10]
[404464304,1770160239089,-500.0,0.00054235,10]
[404464306,1770160239099,-500.0,0.00054235,10]
[404464308,1770160239109,-500.0,0.00054235,10]
[404464310,1770160239118,-2406.22,0.00054236,10]
[404464312,1770160239128,-68765.64301675,0.00054246,2]
[404464540,1770160245576,-2005.18,0.00054236,10]
[404464541,1770160245586,-6684.12247,0.00054246,2]
[404464542,1770160245597,-1312.76713002,0.00054246,2]
[404464548,1770160277910,501.94091464,0.00013273,2]
[404464549,1770160279132,500.0,0.00013273,2]
[404464550,1770160324414,500.0,0.00013273,2]
[404464551,1770160752312,11142.0,0.0003,120]
[404464552,1770161135119,-300.0,0.00027659,2]
[404464553,1770161135139,-43.8681669,0.00027659,2]
[404464554,1770161235118,-236.0,0.00027657,2]
[404464555,1770161235147,-500.0,0.00027658,2]
[404464556,1770161235171,-283.32446483,0.00027658,2]
[404464557,1770161246076,-216.67553517,0.00027658,2]
[404464558,1770161246101,-271.57672783,0.00027658,2]
[404464559,1770161315214,287.0,0.00039925,20]
[404464560,1770161348212,-17261.130084,0.00026,30]
[404464561,1770161348236,-500.0,0.00026574,2]
[404464562,1770161348259,-306.0039878,0.00026574,2]
[404464563,1770161348285,-597.97120089,0.00026574,2]
[404464564,1770161348308,-549.22197242,0.00026574,2]
[404464565,1770161348328,-256.1318331,0.00027659,2]
[404464566,1770161348349,-1200.0,0.00027659,2]
[404464567,1770161348371,-17770.4063643,0.00027659,2]
[404464568,1770161348393,-1000.0,0.00027663,30]
[404464569,1770161348412,-17981.0072749,0.0003,2]
[404464570,1770161348432,-291.41244845,0.00031,120]
[404464571,1770161348452,-322.12451889,0.00031,120]
[404464572,1770161348473,-192.45630291,0.00031,120]
[404464573,1770161348494,-227.35535501,0.00031,120]
[404464574,1770161348514,-164.46148964,0.00031,120]
[404464575,1770161348535,-291.41244845,0.000319,120]
[404464576,1770161348555,-322.12451889,0.000319,120]
[404464577,1770161348575,-192.45630291,0.000319,120]
[404464578,1770161348596,-164.46148964,0.000319,120]
[404464579,1770161348616,-154.076,0.00032738,33]
[404464580,1770161348637,-291.41244845,0.000329,120]
[404464581,1770161348657,-322.12451889,0.000329,120]
[404464582,1770161348678,-192.45630291,0.000329,120]
[404464583,1770161348701,-164.46148964,0.000329,120]
[404464584,1770161348721,-291.41244845,0.000339,120]
[404464585,1770161348744,-322.12451889,0.000339,120]
[404464586,1770161348764,-192.45630291,0.000339,120]
[404464587,1770161348784,-291.41244845,0.000349,120]
[404464588,1770161348809,-322.12451889,0.000349,120]
[404464589,1770161348835,-2431.91334718,0.00036,2]
[404464590,1770161348855,-1392.49,0.00039915,10]
[404464591,1770161348877,-606.0,0.00039938,20]
[404464592,1770161348897,-17770.4063643,0.00043947,2]
[404464593,1770161348917,-800.1219393,0.00044,2]
[404464594,1770161348938,-740.91124423,0.00045636,2]
[404464595,1770161348958,-1041.66666667,0.00046174,2]
[404464596,1770161348979,-153.0,0.0005,120]
[404464597,1770161349001,-151.0,0.00050136,30]
[404464598,1770161349022,-151.0,0.00050821,32]
[404464599,1770161349043,-153.0,0.000514,120]
[404464600,1770161349063,-150.0,0.000514,120]
[404464601,1770161349084,-350.84617701,0.00051456,2]
[404464602,1770161349105,-1401.98132335,0.00051456,2]
[404464603,1770161349125,-151.0,0.00051506,34]
[404464604,1770161351663,633.16283388,0.000332,117]
[404464605,1770161352045,1438.9,0.00039915,10]
[404464606,1770161361509,16440.01011712,0.00032273,2]
[404464607,1770161361663,5519.81307621,0.00048402,2]
[404464626,1770161432250,-379.11101427,0.00039925,2]
[404464627,1770161432261,-496.28749434,0.00039925,2]
[404464628,1770161432270,-159.24167817,0.00039925,2]
[404464629,1770161432280,-6067.44312429,0.00039925,2]
[404464630,1770161432289,-1734.925307,0.00039925,2]
[404464631,1770161432298,-1031.5195162,0.00039925,2]
[404464633,1770161432309,-489.0,0.00039925,2]
[404464635,1770161432321,-973.0,0.00039925,2]
[404464637,1770161432332,-3320.76644445,0.00039925,2]
[404464649,1770161438381,-1746.0424047,0.00039925,2]
[404464651,1770161438391,-512.7253685,0.00039925,2]
[404464653,1770161438400,-185.73879853,0.00039925,2]
[404464655,1770161438410,-472.59146944,0.00039925,2]
[404464657,1770161438421,-28682.90275883,0.00039925,2]
[404464659,1770161438433,-2078.09569487,0.00039925,2]
[404464661,1770161438442,-191.05125214,0.00039925,2]
[404464663,1770161438451,-1207.0333939,0.00039925,2]
[404464665,1770161438461,-1410.84660556,0.00039925,2]
[404464667,1770161438471,-657.67958553,0.00039925,2]
[404464669,1770161438480,-2920.0,0.00039925,2]
[404464671,1770161438489,-14035.2934679,0.00039925,2]
[404465184,1770161446276,-5808.0,0.00039925,2]
[404465185,1770161446302,-448.50501451,0.00039925,2]
[404465186,1770161446313,-61.42295115,0.00039925,2]
[404465187,1770161446323,-1646.58413475,0.00048402,2]
[404465188,1770161446334,-2766.45168643,0.00048402,2]
[404465189,1770161446345,-996.9,0.00048402,2]
[404465190,1770161446356,-1356.24667108,0.00048402,2]
[404465194,1770161447282,-113.25827387,0.00048402,2]
[404465195,1770161447293,-4040.75627478,0.00048402,2]
[404465196,1770161447302,-375.70168765,0.00051456,2]
[404465197,1770161447312,-151.0,0.00052191,36]
[404465198,1770161447322,-153.0,0.000528,120]
[404465199,1770161447332,-151.0,0.00052876,38]
[404465200,1770161447341,-164.050697,0.00053448,2]
[404465201,1770161447350,-151.0,0.00053561,40]
[404465202,1770161447360,-1199.09,0.0005399,10]
[404465203,1770161447369,-999.24,0.0005399,10]
[404465204,1770161447377,-598.91618926,0.00054,120]
[404465205,1770161447386,-958.91804613,0.00054,120]
[404465206,1770161447678,-38.2075741,0.00054,120]
[404465207,1770161447690,-447.99999999,0.00054,120]
[404465214,1770162273628,6053.48,0.00030137,120]
[404465215,1770162414814,2680.0,0.00025,2]
[404465216,1770162423036,720.0,0.00025,2]
[404465217,1770162434129,-2135.56562448,0.0002475,2]
[404465218,1770162558116,-2411.77129593,0.0002475,2]
[404465219,1770162574105,-452.66307959,0.0002475,2]
[404465220,1770162574131,-4280.0,0.00025,2]
[404465221,1770162574155,-15014.23397438,0.00025,2]
[404465222,1770162574176,-400.0,0.0003227,3]
[404465223,1770162574197,-270.0,0.0003227,3]
[404465224,1770162574219,-506.53026712,0.000332,117]
[404465225,1770162574239,-205.71148491,0.00035,2]
[404465226,1770162574259,-154.076,0.00039828,56]
[404465227,1770162574281,-15014.23397438,0.00041379,2]
[404465228,1770162574307,-159.3974867,0.00042018,2]
[404465229,1770162574326,-167.360785,0.00043579,2]
[404465230,1770162574347,-167.360785,0.00046636,2]
[404465231,1770162574367,-1041.66666667,0.00046848,2]
[404465232,1770162574387,-740.91124423,0.00046848,2]
[404465233,1770162574409,-3340.03643607,0.00047718,2]
[404465234,1770162574429,-159.3974867,0.00048383,2]
[404465235,1770162574451,-627.37207038,0.00048884,2]
[404465236,1770162574471,-295.22097903,0.00048884,2]
[404465237,1770162574493,-386.84,0.00049005,2]
[404465238,1770162574516,-179.396,0.00049005,2]
[404465239,1770162574539,-167.360785,0.00049694,2]
[404465240,1770162574562,-152.0,0.0005,120]
[404465241,1770162574581,-1002.37,0.0005,120]
[404465242,1770162574601,-188.36,0.00050136,30]
[404465243,1770162574621,-152.0,0.000514,120]
[404465302,1770162632625,311.27768317,0.00049915,2]
[404465304,1770162632638,-500.0,0.00052054,120]
[404465306,1770162632647,-425.36181593,0.00052054,120]
[404465308,1770162632659,-74.63818407,0.00052054,120]
[404465310,1770162632668,-401.88181593,0.00052054,120]
[404465312,1770162632680,-98.11818407,0.00052054,120]
[404465314,1770162632689,-413.14231433,0.00052054,120]
[404465333,1770162639093,-150.42733303,0.00052054,120]
[404465334,1770162639103,-167.360785,0.00052751,2]
[404465335,1770162639113,-152.0,0.000528,120]
[404465336,1770162639122,-31373.24740259,0.000529,120]
[404465337,1770162639131,-139.11638803,0.0005299,10]
[404465865,1770162646954,-262.45361197,0.0005299,10]
[404465866,1770162646965,-765.77,0.0005299,10]
[404465867,1770162646977,-638.14,0.0005299,10]
[404465868,1770162646990,-9055.4573075,0.00053,120]
[404465869,1770162647002,-67707.55036909,0.00053,2]
[404465870,1770162647013,-2000.0,0.00053999,120]
[404465871,1770162647025,-2074.0,0.00053999,120]
[404465872,1770162647037,-159.50531761,0.00053999,120]
[404465873,1770162647048,-1041.66666667,0.00054,120]
[404465874,1770162647059,-1441.47646579,0.00054,120]
[404465875,1770162647067,-375.6471363,0.000542,30]
[404465876,1770162647074,-500.0,0.00054213,2]
[404465877,1770162647081,-500.0,0.00054213,2]
[404465878,1770162647088,-500.0,0.00054213,2]
[404465879,1770162647101,-500.0,0.00054213,2]
[404465880,1770162647108,-500.0,0.00054213,2]
[404465881,1770162647115,-500.0,0.00054213,2]
[404465882,1770162647121,-500.0,0.00054213,2]
[404465883,1770162647128,-500.0,0.00054213,2]
[404465884,1770162647134,-500.0,0.00054213,2]
[404465885,1770162647141,-500.0,0.00054213,2]
[404465886,1770162647147,-500.0,0.00054213,2]
[404465887,1770162647154,-53413.9902158,0.00054246,2]
[404465888,1770162647161,-41397.30000494,0.00054246,2]
[404465889,1770162669761,179.0,0.00049085,2]
[404465890,1770162743391,1392.17277122,0.00048402,2]
[404465891,1770162880331,-11152.54091965,0.00054146,120]
[404465892,1770162880377,-154.076,0.00054245,102]
[404465893,1770162880420,-180.61083864,0.00054246,30]
[404465894,1770162880464,-151.0,0.00054246,120]
[404465895,1770162880506,-151.0,0.00054246,60]
[404465896,1770162880548,-151.0,0.00054246,60]
[404465897,1770162880594,-151.0,0.00054246,60]
[404465898,1770162880636,-151.0,0.00054246,120]
[404465899,1770162880680,-152.0,0.000543,120]
[404465900,1770162880721,-300.0,0.00054685,120]
[404465901,1770162880764,-300.0,0.0005474,120]
[404465902,1770162880808,-300.0,0.00054794,60]
[404465903,1770162880850,-500.0,0.00054794,120]
[404465904,1770162880893,-500.0,0.00054794,120]
[404465905,1770162880935,-500.0,0.00054794,120]
[404465906,1770162880981,-500.0,0.00054794,120]
[404465907,1770162881026,-500.0,0.00054794,120]
[404465908,1770162881070,-500.0,0.00054794,120]
[404465909,1770162881111,-5842.7,0.00054794,120]
[404465910,1770162881154,-500.0,0.00054794,120]
[404465911,1770162881198,-504.03,0.00054794,120]
[404465912,1770162881242,-500.0,0.00054794,120]
[404465913,1770162881295,-523.70886539,0.00054794,120]
[404465914,1770162881337,-500.0,0.00054794,120]
[404465915,1770162881378,-500.0,0.00054794,120]
[404465916,1770162881421,-500.0,0.00054794,120]
[404465917,1770162881463,-500.0,0.00054794,120]
[404465918,1770162881505,-500.0,0.00054794,120]
[404465919,1770162881548,-500.0,0.00054794,120]
[404465920,1770162881590,-506.74618002,0.00054794,120]
[404465921,1770162881631,-200.0,0.00054794,120]
[404465922,1770162881672,-526.03181691,0.00054794,120]
[404465923,1770162881711,-523.36885901,0.00054794,120]
[404465924,1770162881750,-502.56881506,0.00054794,120]
[404465925,1770162881793,-508.11175523,0.00054794,120]
[404465926,1770162881836,-500.0,0.00054794,120]
[404465927,1770162881878,-500.0,0.00054794,120]
[404465928,1770162881921,-511.53737535,0.00054794,120]
[404465929,1770162881964,-530.08247207,0.00054794,120]
[404465930,1770162882007,-371.08223201,0.00054794,120]
[404465931,1770162882050,-500.0,0.00054794,120]
[404465932,1770162882095,-504.43790227,0.00054794,120]
[404465933,1770162882140,-500.0,0.00054794,120]
[404465934,1770162882182,-500.0,0.00054794,120]
[404465935,1770162882224,-500.0,0.00054794,120]
[404465936,1770162882266,-509.29080546,0.00054794,120]
[404465937,1770162882304,-500.0,0.00054794,55]
[404465938,1770162882344,-514.46130367,0.00054794,120]
[404465939,1770162882386,-500.0,0.00054794,120]
[404465940,1770162882428,-504.16464645,0.00054794,120]
[404465941,1770162882471,-510.21481503,0.00054794,120]
[404465942,1770162882511,-500.54910677,0.00054794,120]
[404465943,1770162882554,-500.0,0.00054794,120]
[404465944,1770162882594,-500.0,0.00054794,120]
[404465945,1770162882636,-522.93413713,0.00054794,120]
[404465946,1770162882678,-498.10722293,0.00054794,120]
[404465947,1770162882719,-500.0,0.00054794,120]
[404465948,1770162882761,-500.0,0.00054794,120]
[404465949,1770162882802,-500.0,0.00054794,60]
[404465950,1770162882842,-500.0,0.00054794,120]
[404465951,1770162882882,-500.0,0.00054794,120]
[404465952,1770162882924,-500.0,0.00054794,120]
[404465953,1770162882966,-500.0,0.00054794,120]
[404465954,1770162883007,-500.0,0.00054794,120]
[404465955,1770162883167,-570.28943921,0.00054794,120]
[404465956,1770162883214,-500.0,0.00054794,120]
[404465957,1770162883255,-500.0,0.00054794,120]
[404465958,1770162883296,-550.0,0.00054794,30]
[404465959,1770162883337,-241.29360109,0.00054794,120]
[404465960,1770162883377,-506.28142252,0.00054794,120]
[404465961,1770162883417,-500.0,0.00054794,120]
[404465962,1770162883457,-326.71370615,0.00054794,120]
[404465963,1770162883497,-577.38075024,0.00054794,120]
[404465964,1770162883537,-500.0,0.00054794,120]
[404465965,1770162883577,-500.0,0.00054794,120]
[404465966,1770162883618,-513.50069029,0.00054794,120]
[404465967,1770162883658,-536.76750001,0.00054794,120]
[404465968,1770162883699,-549.05591874,0.00054794,120]
[404465969,1770162883735,-500.0,0.00054794,120]
[404465970,1770162883772,-260.33432244,0.00054794,120]
[404465971,1770162883809,-524.65647244,0.00054794,120]
[404465972,1770162883848,-572.27128925,0.00054794,120]
[404465973,1770162883886,-510.32570001,0.00054794,120]
[404465974,1770162883929,-500.0,0.00054794,120]
[404465975,1770162883968,-500.0,0.00054794,120]
[404465976,1770162884009,-514.76943735,0.00054794,120]
[404465977,1770162884049,-500.0,0.00054794,120]
[404465978,1770162884090,-527.58172334,0.00054794,120]
[404465979,1770162884131,-557.60596047,0.00054794,120]
[404465980,1770162884175,-509.18965042,0.00054794,120]
[404465981,1770162884216,-514.86955593,0.00054794,120]
[404465982,1770162884256,-516.56554371,0.00054794,120]
[404465983,1770162884295,-500.0,0.00054794,120]
[404465984,1770162884337,-521.9583741,0.00054794,120]
[404465985,1770162884377,-500.0,0.00054794,120]
[404465986,1770162884416,-500.0,0.00054794,120]
[404465987,1770162884456,-623.78584646,0.00054794,120]
[404465988,1770162884499,-519.81799555,0.00054794,120]
[404465989,1770162884543,-467.05134816,0.00054794,120]
[404465990,1770162884583,-630.81781657,0.00054794,120]
[404465991,1770162884625,-490.0,0.00054794,120]
[404465992,1770162884667,-588.19795847,0.00054794,120]
[404465993,1770162884709,-500.0,0.00054794,120]
[404465994,1770162884752,-500.0,0.00054794,120]
[404465995,1770162884795,-510.84693823,0.00054794,120]
[404465996,1770162884835,-872.94,0.00054794,120]
[404465997,1770162884877,-512.6396655,0.00054794,120]
[404465998,1770162884918,-510.03940845,0.00054794,120]
[404465999,1770162884962,-515.42828561,0.00054794,120]
[404466000,1770162885004,-542.84477435,0.00054794,120]
[404466001,1770162885047,-539.15489116,0.00054794,120]
[404466002,1770162885090,-500.0,0.00054794,120]
[404466003,1770162885131,-530.59884303,0.00054794,120]
[404466004,1770162885174,-500.0,0.00054794,120]
[404466005,1770162885214,-578.9297891,0.00054794,120]
[404466006,1770162885253,-500.0,0.00054794,120]
[404466007,1770162885292,-533.20584059,0.00054794,120]
[404466008,1770162885333,-542.34664364,0.00054794,120]
[404466009,1770162885376,-500.0,0.00054794,120]
[404466010,1770162885415,-644.63922807,0.00054794,120]
[404466011,1770162885457,-512.85815421,0.00054794,120]
[404466012,1770162885498,-564.49572187,0.00054794,120]
[404466013,1770162885536,-557.07413589,0.00054794,120]
[404466014,1770162885576,-568.28107513,0.00054794,120]
[404466015,1770162885615,-151.0,0.00054794,120]
[404466016,1770162885655,-151.424551,0.00054794,120]
[404466017,1770162885696,-591.44575761,0.00054794,120]
[404466018,1770162885738,-500.0,0.00054794,120]
[404466019,1770162885781,-553.57596862,0.00054794,120]
[404466020,1770162885824,-500.0,0.00054794,120]
[404466021,1770162885866,-500.0,0.00054794,120]
[404466022,1770162885906,-511.25442768,0.00054794,120]
[404466023,1770162885948,-500.0,0.00054794,120]
[404466024,1770162885991,-615.15089658,0.00054794,120]
[404466025,1770162886033,-500.0,0.00054794,120]
[404466026,1770162886076,-582.03712367,0.00054794,120]
[404466027,1770162886118,-514.74700944,0.00054794,120]
[404466028,1770162886160,-500.0,0.00054794,120]
[404466029,1770162886206,-150.0,0.00054794,120]
[404466030,1770162886248,-561.09319856,0.00054794,120]
[404466031,1770162886288,-516.24030932,0.00054794,120]
[404466032,1770162886327,-508.97356439,0.00054794,120]
[404466033,1770162886368,-151.0,0.00054794,120]
[404466034,1770162886406,-500.0,0.00054794,120]
[404466035,1770162886445,-502.83850815,0.00054794,120]
[404466036,1770162886485,-513.94537597,0.00054794,120]
[404466037,1770162886530,-500.0,0.00054794,120]
[404466038,1770162886571,-500.0,0.00054794,120]
[404466039,1770162886612,-500.0,0.00054794,120]
[404466040,1770162886653,-500.0,0.00054794,120]
[404466041,1770162886694,-500.0,0.00054794,120]
[404466042,1770162886734,-510.44667361,0.00054794,120]
[404466043,1770162886873,-532.6048977,0.00054794,120]
[404466044,1770162886917,-514.85799845,0.00054794,120]
[404466045,1770162886958,-151.0,0.00054794,120]